lending/lending_fUSD_20240207
["ID","MTS","AMOUNT","RATE_DAILY","PERIOD"]
[313420021,1707330484781,-500.0,0.00046575,31]
[313420022,1707330484805,-500.0,0.00046575,31]
[313420023,1707330484830,-1000.0,0.00046575,31]
[313420024,1707330484857,-500.0,0.00046575,31]
[313420025,1707330484883,-2276.5,0.00046575,31]
[313420026,1707330484907,-500.0,0.00046575,31]
[313420027,1707330484933,-500.0,0.00046575,31]
[313420028,1707330484957,-500.0,0.00046575,31]
[313420029,1707330484982,-500.0,0.00046575,31]
[313420030,1707330485005,-500.0,0.00046575,31]
[313420031,1707330485029,-859.74,0.00046575,31]
[313420032,1707330485052,-500.0,0.00046575,31]
[313420033,1707330485075,-500.0,0.00046575,31]
[313420034,1707330485099,-623.18,0.00046575,31]
[313420035,1707330485121,-500.0,0.00046575,31]
[313420036,1707330485144,-396.46872107,0.00046575,31]
[313420037,1707330485167,-500.0,0.00046575,31]
[313420038,1707330485191,-500.0,0.00046575,31]
[313420039,1707330485215,-504.75011132,0.00046575,31]
[313420040,1707330485241,-500.0,0.00046575,31]
[313420041,1707330485265,-500.0,0.00046575,31]
[313420042,1707330485291,-500.0,0.00046575,31]
[313420043,1707330485315,-500.0,0.00046575,31]
[313420044,1707330485341,-586.07,0.00046575,31]
[313420045,1707330485367,-500.0,0.00046575,31]
[313420046,1707330485392,-500.0,0.00046575,31]
[313420047,1707330485417,-531.53,0.00046575,31]
[313420048,1707330485442,-500.0,0.00046575,31]
[313420049,1707330485468,-500.0,0.00046575,31]
[313420050,1707330485493,-540.75,0.00046575,31]
[313420051,1707330485517,-500.0,0.00046575,31]
[313420052,1707330485541,-1140.73,0.00046575,31]
[313420053,1707330485566,-500.0,0.00046575,31]
[313420054,1707330485590,-500.0,0.00046575,31]
[313420055,1707330485615,-500.0,0.00046575,31]
[313420056,1707330485641,-2110.96,0.00046575,31]
[313420057,1707330485668,-5100.19,0.00046575,31]
[313420058,1707330485692,-465.7738547,0.00046575,31]
[313420059,1707330485716,-500.0,0.00046575,31]
[313420060,1707330485741,-500.0,0.00046575,31]
[313420061,1707330485767,-500.0,0.00046575,31]
[313420062,1707330485791,-500.0,0.00046575,31]
[313420063,1707330485816,-826.78,0.00046575,31]
[313420064,1707330485839,-604.8,0.00046575,31]
[313420065,1707330485864,-500.0,0.00046575,31]
[313420066,1707330485887,-500.0,0.00046575,31]
[313420067,1707330485911,-690.26,0.00046575,31]
[313420068,1707330485935,-590.4,0.00046575,31]
[313420069,1707330485959,-500.0,0.00046575,31]
[313420070,1707330485984,-500.0,0.00046575,31]
[313420071,1707330486010,-525.04252121,0.00046575,31]
[313420072,1707330486034,-500.0,0.00046575,31]
[313420073,1707330486058,-500.0,0.00046575,31]
[313420074,1707330486084,-500.0,0.00046575,31]
[313420075,1707330486108,-494.9416182,0.00046575,31]
[313420076,1707330486132,-500.0,0.00046575,31]
[313420077,1707330486158,-500.0,0.00046575,31]
[313420078,1707330486184,-3110.14,0.00046575,31]
[313420079,1707330486209,-1013.12,0.00046575,31]
[313420080,1707330486234,-500.0,0.00046575,31]
[313420081,1707330486258,-762.97,0.00046575,31]
[313420082,1707330486286,-221.18562315,0.00046575,31]
[313420083,1707330486311,-1253.08,0.00046575,31]
[313420084,1707330486334,-543.76821451,0.00046575,31]
[313420085,1707330486360,-500.0,0.00046575,31]
[313420086,1707330486385,-590.1,0.00046575,31]
[313420087,1707330486409,-500.0,0.00046575,31]
[313420088,1707330486434,-500.0,0.00046575,31]
[313420089,1707330486458,-500.0,0.00046575,31]
[313420090,1707330486484,-500.0,0.00046575,31]
[313420091,1707330486507,-500.0,0.00046575,31]
[313420092,1707330486531,-500.0,0.00046575,31]
[313420093,1707330486555,-500.0,0.00046575,31]
[313420094,1707330486580,-1334.35,0.00046575,31]
[313420095,1707330486606,-500.0,0.00046575,31]
[313420096,1707330486629,-594.40692789,0.00046575,31]
[313420097,1707330486652,-1126.78,0.00046575,31]
[313420098,1707330486677,-1234.51,0.00046575,31]
[313420099,1707330486700,-500.0,0.00046575,31]
[313420100,1707330486726,-500.0,0.00046575,31]
[313420101,1707330486750,-500.0,0.00046575,31]
[313420102,1707330486775,-910.87,0.00046575,31]
[313420103,1707330486800,-500.0,0.00046575,31]
[313420104,1707330486824,-638.99,0.00046575,31]
[313420105,1707330487023,-500.0,0.00046575,31]
[313420106,1707330487052,-5470.6,0.00046575,31]
[313420107,1707330487076,-500.0,0.00046575,31]
[313420108,1707330487102,-500.0,0.00046575,31]
[313420109,1707330487126,-673.32,0.00046575,31]
[313420110,1707330487150,-1317.55,0.00046575,31]
[313420111,1707330487174,-565.7,0.00046575,31]
[313420112,1707330487198,-500.0,0.00046575,31]
[313420113,1707330487224,-500.0,0.00046575,31]
[313420114,1707330487250,-500.0,0.00046575,31]
[313420115,1707330487277,-500.0,0.00046575,31]
[313420116,1707330487306,-500.0,0.00046575,31]
[313420117,1707330487332,-1027.86,0.00046575,31]
[313420118,1707330487356,-500.0,0.00046575,31]
[313420119,1707330487386,-500.0,0.00046575,31]
[313420120,1707330487412,-500.0,0.00046575,31]
[313420121,1707330487435,-500.0,0.00046575,31]
[313420122,1707330487459,-543.86,0.00046575,31]
[313420123,1707330487482,-600.3404085,0.00046575,31]
[313420124,1707330487505,-500.0,0.00046575,31]
[313420125,1707330487528,-863.51,0.00046575,31]
[313420126,1707330487553,-681.27,0.00046575,31]
[313420127,1707330487579,-500.0,0.00046575,31]
[313420128,1707330487603,-580.46,0.00046575,31]
[313420129,1707330487625,-500.0,0.00046575,31]
[313420130,1707330487650,-872.39,0.00046575,31]
[313420131,1707330487675,-628.04,0.00046575,31]
[313420132,1707330487699,-500.0,0.00046575,31]
[313420133,1707330487724,-649.05,0.00046575,31]
[313420134,1707330487749,-827.69,0.00046575,31]
[313420135,1707330487774,-824.08,0.00046575,31]
[313420136,1707330487796,-500.0,0.00046575,31]
[313420137,1707330487819,-500.0,0.00046575,31]
[313420138,1707330487842,-500.0,0.00046575,31]
[313420139,1707330487865,-573.93,0.00046575,31]
[313420140,1707330487889,-500.0,0.00046575,31]
[313420141,1707330487913,-1205.86,0.00046575,31]
[313420142,1707330487937,-500.0,0.00046575,31]
[313420143,1707330487960,-500.0,0.00046575,31]
[313420144,1707330487982,-500.0,0.00046575,31]
[313420145,1707330488007,-500.0,0.00046575,31]
[313420146,1707330488030,-915.55,0.00046575,31]
[313420147,1707330488055,-1305.46,0.00046575,31]
[313420148,1707330488080,-500.0,0.00046575,31]
[313420149,1707330488104,-1430.98,0.00046575,31]
[313420150,1707330488130,-500.0,0.00046575,31]
[313420151,1707330488154,-500.0,0.00046575,31]
[313420152,1707330488177,-500.0,0.00046575,31]
[313420153,1707330488201,-1071.66,0.00046575,31]
[313420154,1707330488225,-500.0,0.00046575,31]
[313420155,1707330488251,-1079.58,0.00046575,31]
[313420156,1707330488276,-500.0,0.00046575,31]
[313420157,1707330488302,-500.0,0.00046575,31]
[313420158,1707330488326,-500.0,0.00046575,31]
[313420159,1707330488350,-641.29,0.00046575,31]
[313420160,1707330488375,-500.0,0.00046575,31]
[313420161,1707330488400,-500.0,0.00046575,31]
[313420162,1707330488422,-566.8,0.00046575,31]
[313420163,1707330488447,-500.0,0.00046575,31]
[313420164,1707330488474,-13119.16,0.00046575,31]
[313420165,1707330488498,-1211.92,0.00046575,31]
[313420166,1707330488521,-500.0,0.00046575,31]
[313420167,1707330488543,-500.0,0.00046575,31]
[313420168,1707330488566,-1193.33,0.00046575,31]
[313420169,1707330488589,-1075.08,0.00046575,31]
[313420170,1707330488613,-500.0,0.00046575,31]
[313420171,1707330488639,-1079.91,0.00046575,31]
[313420172,1707330488663,-1061.28,0.00046575,31]
[313420173,1707330488687,-984.32,0.00046575,31]
[313420174,1707330488711,-1181.81,0.00046575,31]
[313420175,1707330488734,-526.49092774,0.00046575,31]
[313420176,1707330488757,-500.0,0.00046575,31]
[313420177,1707330488780,-656.79,0.00046575,31]
[313420178,1707330488803,-500.0,0.00046575,31]
[313420179,1707330488826,-610.13,0.00046575,31]
[313420180,1707330488848,-500.0,0.00046575,31]
[313420181,1707330488870,-500.0,0.00046575,31]
[313420182,1707330488892,-500.0,0.00046575,31]
[313420183,1707330488915,-500.0,0.00046575,31]
[313420184,1707330488937,-500.0,0.00046575,31]
[313420185,1707330488961,-500.0,0.00046575,31]
[313420186,1707330488984,-3312.54,0.00046575,31]
[313420187,1707330489007,-500.0,0.00046575,31]
[313420188,1707330489030,-981.99,0.00046575,31]
[313420189,1707330489053,-989.83,0.00046575,31]
[313420190,1707330489076,-500.0,0.00046575,31]
[313420191,1707330489098,-1182.09,0.00046575,31]
[313420192,1707330489122,-500.0,0.00046575,31]
[313420193,1707330489146,-500.0,0.00046575,31]
[313420194,1707330489169,-1127.5,0.00046575,31]
[313420195,1707330489192,-500.0,0.00046575,31]
[313420196,1707330489215,-500.0,0.00046575,31]
[313420197,1707330489238,-1016.26,0.00046575,31]
[313420198,1707330489261,-1091.93,0.00046575,31]
[313420199,1707330489287,-500.0,0.00046575,31]
[313420200,1707330489310,-500.0,0.00046575,31]
[313420201,1707330489334,-500.0,0.00046575,31]
[313420202,1707330489359,-500.0,0.00046575,31]
[313420203,1707330489382,-500.0,0.00046575,31]
[313420204,1707330489405,-500.0,0.00046575,31]
[313420205,1707330489428,-552.87862194,0.00046575,31]
[313420206,1707330489451,-500.0,0.00046575,31]
[313420207,1707330489475,-944.6,0.00046575,31]
[313420208,1707330489498,-866.94,0.00046575,31]
[313420209,1707330489525,-500.0,0.00046575,31]
[313420210,1707330489762,-1249.45,0.00046575,31]
[313420211,1707330489785,-500.0,0.00046575,31]
[313420212,1707330489812,-1145.83,0.00046575,31]
[313420213,1707330489837,-1145.83,0.00046575,31]
[313420214,1707330489863,-520.7,0.00046575,31]
[313420215,1707330489886,-1145.83,0.00046575,31]
[313420216,1707330489911,-500.0,0.00046575,31]
[313420217,1707330489935,-1145.83,0.00046575,31]
[313420218,1707330489959,-1145.83,0.00046575,31]
[313420219,1707330489982,-1145.83,0.00046575,31]
[313420220,1707330490005,-527.04,0.00046575,31]
[313420221,1707330490027,-1145.83,0.00046575,31]
[313420222,1707330490049,-1145.83,0.00046575,31]
[313420223,1707330490072,-233.32282438,0.00046575,31]
[313420224,1707330490094,-1145.83,0.00046575,31]
[313420225,1707330490118,-978.95,0.00046575,31]
[313420226,1707330490142,-1145.83,0.00046575,31]
[313420227,1707330490165,-1145.83,0.00046575,31]
[313420228,1707330490187,-1145.83,0.00046575,31]
[313420229,1707330490210,-584.15,0.00046575,31]
[313420230,1707330490232,-1145.83,0.00046575,31]
[313420231,1707330490255,-913.9,0.00046575,31]
[313420232,1707330490280,-1145.83,0.00046575,31]
[313420233,1707330490304,-500.0,0.00046575,31]
[313420234,1707330490328,-1145.83,0.00046575,31]
[313420235,1707330490352,-500.0,0.00046575,31]
[313420236,1707330490377,-1145.83,0.00046575,31]
[313420237,1707330490401,-1145.83,0.00046575,31]
[313420238,1707330490425,-1145.83,0.00046575,31]
[313420239,1707330490448,-1320.52,0.00046575,31]
[313420240,1707330490473,-1145.83,0.00046575,31]
[313420241,1707330490497,-1145.83,0.00046575,31]
[313420242,1707330490522,-500.0,0.00046575,31]
[313420243,1707330490545,-500.0,0.00046575,31]
[313420244,1707330490570,-1145.83,0.00046575,31]
[313420245,1707330490593,-1145.83,0.00046575,31]
[313420246,1707330490615,-1145.83,0.00046575,31]
[313420247,1707330490638,-500.0,0.00046575,31]
[313420248,1707330490661,-1145.91,0.00046575,31]
[313420249,1707330490684,-576.82,0.00046575,31]
[313420250,1707330490709,-500.0,0.00046575,31]
[313420251,1707330490733,-500.0,0.00046575,31]
[313420252,1707330490756,-1039.46,0.00046575,31]
[313420253,1707330490780,-500.0,0.00046575,31]
[313420254,1707330490803,-500.0,0.00046575,31]
[313420255,1707330490827,-500.0,0.00046575,31]
[313420256,1707330490850,-500.0,0.00046575,31]
[313420257,1707330490872,-500.0,0.00046575,31]
[313420258,1707330490896,-500.0,0.00046575,31]
[313420259,1707330490919,-955.86,0.00046575,31]
[313420260,1707330490943,-1136.87,0.00046575,31]
[313420261,1707330490968,-519.3,0.00046575,31]
[313420262,1707330490995,-929.96,0.00046575,31]
[313420263,1707330491018,-506.85029146,0.00046575,31]
[313420264,1707330491041,-500.0,0.00046575,31]
[313420265,1707330491065,-514.64,0.00046575,31]
[313420266,1707330491088,-500.0,0.00046575,31]
[313420267,1707330491112,-500.0,0.00046575,31]
[313420268,1707330491135,-500.0,0.00046575,31]
[313420269,1707330491159,-500.0,0.00046575,31]
[313420270,1707330491183,-500.0,0.00046575,31]
[313420271,1707330491205,-500.0,0.00046575,31]
[313420272,1707330491230,-500.0,0.00046575,31]
[313420273,1707330491254,-500.0,0.00046575,31]
[313420274,1707330491278,-500.0,0.00046575,31]
[313420275,1707330491307,-500.0,0.00046575,31]
[313420276,1707330491333,-500.0,0.00046575,31]
[313420277,1707330491358,-933.01,0.00046575,31]
[313420278,1707330491386,-1428.21,0.00046575,31]
[313420279,1707330491410,-786.99,0.00046575,31]
[313420280,1707330491433,-545.53145531,0.00046575,31]
[313420281,1707330491458,-1003.21,0.00046575,31]
[313420282,1707330491484,-500.0,0.00046575,30]
[313420283,1707330491506,-500.0,0.00046575,31]
[313420284,1707330491531,-837.68,0.00046575,31]
[313420285,1707330491553,-500.0,0.00046575,31]
[313420286,1707330491576,-500.0,0.00046575,31]
[313420287,1707330491599,-500.0,0.00046575,31]
[313420288,1707330491623,-500.0,0.00046575,31]
[313420289,1707330491647,-500.0,0.00046575,31]
[313420290,1707330491671,-556.43,0.00046575,31]
[313420291,1707330491695,-500.0,0.00046575,31]
[313420292,1707330491719,-500.0,0.00046575,31]
[313420293,1707330491744,-500.0,0.00046575,31]
[313420294,1707330491768,-500.0,0.00046575,31]
[313420295,1707330491790,-500.0,0.00046575,31]
[313420296,1707330491814,-938.95,0.00046575,31]
[313420297,1707330491836,-599.1,0.00046575,31]
[313420298,1707330491858,-500.0,0.00046575,31]
[313420299,1707330491882,-1035.19,0.00046575,31]
[313420300,1707330491905,-500.0,0.00046575,31]
[313420301,1707330491929,-834.43,0.00046575,31]
[313420302,1707330491952,-500.0,0.00046575,31]
[313420303,1707330491978,-898.3,0.00046575,31]
[313420304,1707330492002,-500.0,0.00046575,31]
[313420305,1707330492027,-500.0,0.00046575,31]
[313420306,1707330492050,-500.0,0.00046575,31]
[313420307,1707330492074,-1824.24,0.00046575,31]
[313420308,1707330492097,-500.0,0.00046575,31]
[313420309,1707330492120,-500.0,0.00046575,31]
[313420310,1707330492143,-500.0,0.00046575,31]
[313420311,1707330492166,-1258.83,0.00046575,31]
[313420312,1707330492189,-500.0,0.00046575,31]
[313420313,1707330492213,-500.0,0.00046575,31]
[313420314,1707330492236,-500.0,0.00046575,31]
[313420315,1707330492445,-1485.55,0.00046575,31]
[313420316,1707330492470,-500.0,0.00046575,31]
[313420317,1707330492494,-500.0,0.00046575,31]
[313420318,1707330492518,-500.0,0.00046575,31]
[313420319,1707330492542,-703.64,0.00046575,31]
[313420320,1707330492567,-856.57,0.00046575,31]
[313420321,1707330492590,-500.0,0.00046575,31]
[313420322,1707330492612,-375.7102084,0.00046575,31]
[313420323,1707330492634,-937.23,0.00046575,31]
[313420324,1707330492657,-500.0,0.00046575,31]
[313420325,1707330492681,-500.0,0.00046575,31]
[313420326,1707330492704,-500.0,0.00046575,31]
[313420327,1707330492727,-529.38,0.00046575,31]
[313420328,1707330492750,-926.32,0.00046575,31]
[313420329,1707330492772,-500.0,0.00046575,31]
[313420330,1707330492794,-500.0,0.00046575,31]
[313420331,1707330492817,-941.51,0.00046575,31]
[313420332,1707330492840,-814.46,0.00046575,31]
[313420333,1707330492863,-500.0,0.00046575,31]
[313420334,1707330492886,-283.10773187,0.00046575,31]
[313420335,1707330492908,-500.0,0.00046575,31]
[313420336,1707330492931,-1877.02,0.00046575,31]
[313420337,1707330492957,-500.0,0.00046575,31]
[313420338,1707330492980,-500.0,0.00046575,31]
[313420339,1707330493003,-1288.36,0.00046575,31]
[313420340,1707330493025,-500.0,0.00046575,31]
[313420341,1707330493048,-500.0,0.00046575,31]
[313420342,1707330493071,-510.87,0.00046575,31]
[313420343,1707330493096,-500.0,0.00046575,31]
[313420344,1707330493120,-811.03,0.00046575,31]
[313420345,1707330493144,-667.25,0.00046575,31]
[313420346,1707330493167,-500.0,0.00046575,31]
[313420347,1707330493190,-500.0,0.00046575,31]
[313420348,1707330493213,-500.0,0.00046575,31]
[313420349,1707330493238,-1011.37,0.00046575,31]
[313420350,1707330493261,-500.0,0.00046575,31]
[313420351,1707330493287,-504.36,0.00046575,31]
[313420352,1707330493312,-922.41,0.00046575,31]
[313420353,1707330493337,-155.81798881,0.00046575,31]
[313420354,1707330493362,-522.07,0.00046575,31]
[313420355,1707330493386,-500.0,0.00046575,31]
[313420356,1707330493408,-500.0,0.00046575,31]
[313420357,1707330493431,-500.0,0.00046575,31]
[313420358,1707330493454,-469.74279836,0.00046575,31]
[313420359,1707330493478,-500.0,0.00046575,31]
[313420360,1707330493502,-552.53,0.00046575,31]
[313420361,1707330493525,-500.0,0.00046575,31]
[313420362,1707330493549,-1318.04,0.00046575,31]
[313420363,1707330493573,-500.0,0.00046575,31]
[313420364,1707330493597,-1071.7,0.00046575,31]
[313420365,1707330493620,-500.0,0.00046575,31]
[313420366,1707330493645,-500.0,0.00046575,31]
[313420367,1707330493668,-500.0,0.00046575,31]
[313420368,1707330493691,-500.0,0.00046575,31]
[313420369,1707330493713,-500.0,0.00046575,31]
[313420370,1707330493738,-974.65,0.00046575,31]
[313420371,1707330493761,-500.0,0.00046575,31]
[313420372,1707330493784,-811.51,0.00046575,31]
[313420373,1707330493808,-500.0,0.00046575,31]
[313420374,1707330493833,-1464.8,0.00046575,31]
[313420375,1707330493859,-530.39,0.00046575,31]
[313420376,1707330493882,-542.99874152,0.00046575,31]
[313420377,1707330493906,-500.0,0.00046575,31]
[313420378,1707330493929,-500.0,0.00046575,31]
[313420379,1707330493951,-500.0,0.00046575,31]
[313420380,1707330493974,-500.0,0.00046575,31]
[313420381,1707330493998,-500.0,0.00046575,31]
[313420382,1707330494022,-683.79,0.00046575,31]
[313420383,1707330494045,-500.0,0.00046575,31]
[313420384,1707330494067,-508.47,0.00046575,31]
[313420385,1707330494090,-500.0,0.00046575,31]
[313420386,1707330494113,-500.0,0.00046575,31]
[313420387,1707330494136,-500.0,0.00046575,31]
[313420388,1707330494161,-746.86,0.00046575,31]
[313420389,1707330494184,-581.08,0.00046575,31]
[313420390,1707330494207,-500.0,0.00046575,31]
[313420391,1707330494233,-500.0,0.00046575,31]
[313420392,1707330494258,-500.0,0.00046575,31]
[313420393,1707330494281,-500.0,0.00046575,31]
[313420394,1707330494308,-500.0,0.00046575,31]
[313420395,1707330494331,-946.6,0.00046575,31]
[313420396,1707330494355,-500.0,0.00046575,31]
[313420397,1707330494382,-1116.34,0.00046575,31]
[313420398,1707330494405,-150.0,0.00046575,31]
[313420399,1707330494427,-500.0,0.00046575,31]
[313420400,1707330494450,-500.0,0.00046575,31]
[313420401,1707330494474,-500.0,0.00046575,31]
[313420402,1707330494497,-624.95427607,0.00046575,31]
[313420403,1707330494520,-500.0,0.00046575,31]
[313420404,1707330494543,-500.0,0.00046575,31]
[313420405,1707330494567,-500.0,0.00046575,31]
[313420406,1707330494590,-1621.88,0.00046575,31]
[313420407,1707330494612,-1000.0,0.00046575,30]
[313420408,1707330494635,-968.71,0.00046575,31]
[313420409,1707330494658,-500.0,0.00046575,31]
[313420410,1707330494682,-972.03,0.00046575,31]
[313420411,1707330494706,-500.0,0.00046575,31]
[313420412,1707330494730,-674.02,0.00046575,31]
[313420413,1707330494753,-707.2,0.00046575,31]
[313420414,1707330494775,-601.66391893,0.00046575,31]
[313420415,1707330494797,-528.11,0.00046575,31]
[313420416,1707330494820,-500.0,0.00046575,31]
[313420417,1707330494843,-500.0,0.00046575,31]
[313420418,1707330494866,-1070.7,0.00046575,31]
[313420419,1707330494888,-500.0,0.00046575,31]
[313420421,1707330495082,-500.0,0.00046575,31]
[313420422,1707330495107,-500.0,0.00046575,31]
[313420423,1707330495131,-2700.43,0.00046575,31]
[313420424,1707330495154,-563.85,0.00046575,31]
[313420425,1707330495177,-500.0,0.00046575,31]
[313420426,1707330495200,-500.0,0.00046575,31]
[313420427,1707330495222,-500.0,0.00046575,31]
[313420428,1707330495245,-500.0,0.00046575,31]
[313420429,1707330495268,-233.84554912,0.00046575,31]
[313420430,1707330495294,-500.0,0.00046575,31]
[313420431,1707330495317,-500.0,0.00046575,31]
[313420432,1707330495341,-500.0,0.00046575,31]
[313420433,1707330495363,-500.0,0.00046575,31]
[313420434,1707330495390,-871.97,0.00046575,31]
[313420435,1707330495414,-786.94,0.00046575,31]
[313420436,1707330495437,-500.0,0.00046575,31]
[313420437,1707330495460,-500.0,0.00046575,31]
[313420438,1707330495484,-1010.93,0.00046575,31]
[313420439,1707330495508,-500.0,0.00046575,30]
[313420440,1707330495532,-1040.21,0.00046575,31]
[313420441,1707330495555,-608.39,0.00046575,31]
[313420442,1707330495579,-500.0,0.00046575,31]
[313420443,1707330495602,-500.0,0.00046575,31]
[313420444,1707330495625,-500.0,0.00046575,31]
[313420445,1707330495648,-1399.56,0.00046575,31]
[313420446,1707330495671,-500.0,0.00046575,31]
[313420447,1707330495694,-500.0,0.00046575,31]
[313420448,1707330495718,-500.0,0.00046575,31]
[313420449,1707330495743,-2642.06,0.00046575,31]
[313420450,1707330495767,-500.0,0.00046575,31]
[313420451,1707330495790,-500.0,0.00046575,31]
[313420452,1707330495814,-882.86,0.00046575,31]
[313420453,1707330495838,-500.0,0.00046575,31]
[313420454,1707330495863,-500.0,0.00046575,31]
[313420455,1707330495886,-500.0,0.00046575,31]
[313420456,1707330495910,-500.0,0.00046575,31]
[313420457,1707330495934,-535.64809731,0.00046575,31]
[313420458,1707330495957,-500.0,0.00046575,31]
[313420459,1707330495981,-500.0,0.00046575,31]
[313420460,1707330496003,-500.0,0.00046575,31]
[313420461,1707330496026,-500.0,0.00046575,31]
[313420462,1707330496051,-500.0,0.00046575,31]
[313420463,1707330496075,-500.0,0.00046575,31]
[313420464,1707330496099,-500.0,0.00046575,31]
[313420465,1707330496124,-500.0,0.00046575,31]
[313420466,1707330496153,-500.0,0.00046575,31]
[313420467,1707330496176,-882.42,0.00046575,31]
[313420468,1707330496201,-500.0,0.00046575,31]
[313420469,1707330496225,-500.0,0.00046575,31]
[313420470,1707330496250,-1222.05,0.00046575,31]
[313420471,1707330496274,-500.0,0.00046575,31]
[313420472,1707330496300,-500.0,0.00046575,31]
[313420473,1707330496327,-605.84827703,0.00046575,31]
[313420474,1707330496350,-1227.19,0.00046575,31]
[313420475,1707330496376,-500.0,0.00046575,31]
[313420476,1707330496400,-557.61,0.00046575,31]
[313420477,1707330496423,-159.35527995,0.00046575,31]
[313420478,1707330496447,-500.0,0.00046575,31]
[313420479,1707330496470,-500.0,0.00046575,31]
[313420480,1707330496494,-4431.62488397,0.000469,30]
[313420481,1707330496518,-500.0,0.00046904,30]
[313420482,1707330496542,-500.0,0.00046986,31]
[313420483,1707330496568,-619.34848387,0.00046986,31]
[313420484,1707330496594,-500.0,0.00046986,31]
[313420485,1707330496618,-526.55949625,0.00046986,31]
[313420486,1707330496641,-543.32719213,0.00046986,31]
[313420487,1707330496665,-500.0,0.00046986,31]
[313420488,1707330496689,-510.52975903,0.00046986,31]
[313420489,1707330496714,-174.95113642,0.00046986,31]
[313420490,1707330496737,-159.96811962,0.00046986,31]
[313420491,1707330496761,-631.87777791,0.00046986,31]
[313420492,1707330496785,-500.0,0.00046986,31]
[313420493,1707330496809,-500.0,0.00046986,31]
[313420494,1707330496833,-500.0,0.00046986,31]
[313420495,1707330496856,-601.70773329,0.00046986,31]
[313420496,1707330496879,-500.0,0.00046986,31]
[313420497,1707330496902,-500.0,0.00046986,31]
[313420498,1707330496925,-500.0,0.00046986,31]
[313420499,1707330496949,-500.0,0.00046986,31]
[313420500,1707330496972,-500.0,0.00046986,31]
[313420501,1707330496995,-483.6721388,0.00046986,31]
[313420502,1707330497018,-500.0,0.00046986,31]
[313420503,1707330497043,-500.0,0.00046986,31]
[313420504,1707330497066,-500.0,0.00046986,31]
[313420505,1707330497090,-250.0,0.00046986,31]
[313420506,1707330497113,-500.0,0.00046986,31]
[313420507,1707330497138,-502.52,0.00046986,31]
[313420508,1707330497161,-500.0,0.00046986,31]
[313420509,1707330497185,-500.0,0.00046986,31]
[313420510,1707330497210,-500.0,0.00046986,31]
[313420511,1707330497235,-500.0,0.00046986,31]
[313420512,1707330497259,-500.0,0.00046986,31]
[313420513,1707330497283,-500.0,0.00046986,31]
[313420514,1707330497310,-500.0,0.00046986,31]
[313420515,1707330497333,-500.0,0.00046986,31]
[313420516,1707330497358,-500.0,0.00046986,31]
[313420517,1707330497383,-500.0,0.00046986,31]
[313420518,1707330497406,-500.0,0.00046986,31]
[313420519,1707330497430,-500.0,0.00046986,31]
[313420520,1707330497455,-500.0,0.00046986,31]
[313420521,1707330497478,-500.0,0.00046986,31]